fUSD/lending_fUSD_20250503
["ID","MTS","AMOUNT","RATE_DAILY","PERIOD"]
[359685695,1746251011395,-450.0,0.00019845,2]
[359685696,1746251011418,-466.12,0.00019845,2]
[359685697,1746251011441,-1433.08,0.00019845,2]
[359685698,1746251011464,-792.59,0.00019845,2]
[359685699,1746251011487,-450.0,0.00019845,2]
[359685700,1746251011511,-450.0,0.00019845,2]
[359685701,1746251011536,-1600.23473,0.00019845,2]
[359685702,1746251011561,-532.23,0.00019845,2]
[359685703,1746251011585,-816.94,0.00019845,2]
[359685704,1746251011610,-450.0,0.00019845,2]
[359685705,1746251011632,-450.0,0.00019845,2]
[359685706,1746251011655,-658.74,0.00019845,2]
[359685707,1746251011678,-450.0,0.00019845,2]
[359685708,1746251011702,-450.0,0.00019845,2]
[359685709,1746251011724,-450.0,0.00019845,2]
[359685710,1746251011748,-3860.17,0.00019845,2]
[359685711,1746251011774,-625.77,0.00019845,2]
[359685712,1746251011800,-1205.042031,0.00019845,2]
[359685713,1746251011826,-450.0,0.00019845,2]
[359685714,1746251011851,-450.0,0.00019845,2]
[359685715,1746251011876,-450.0,0.00019845,2]
[359685716,1746251011900,-692.95,0.00019845,2]
[359685717,1746251011924,-494.56,0.00019845,2]
[359685718,1746251011951,-450.0,0.00019845,2]
[359685719,1746251011978,-450.0,0.00019845,2]
[359685720,1746251012003,-4605.11,0.00019845,2]
[359685721,1746251012026,-511.58,0.00019845,2]
[359685722,1746251012051,-467.85,0.00019845,2]
[359685723,1746251012076,-450.0,0.00019845,2]
[359685724,1746251012099,-3933.88,0.00019845,2]
[359685725,1746251012123,-5122.14,0.00019845,2]
[359685726,1746251012146,-450.0,0.00019845,2]
[359685727,1746251012170,-450.0,0.00019845,2]
[359685728,1746251012195,-450.0,0.00019845,2]
[359685729,1746251012220,-450.0,0.00019845,2]
[359685730,1746251012244,-537.01,0.00019845,2]
[359685731,1746251012268,-450.0,0.00019845,2]
[359685732,1746251012293,-450.0,0.00019845,2]
[359685733,1746251012321,-450.0,0.00019845,2]
[359685734,1746251012345,-450.0,0.00019845,2]
[359685735,1746251012370,-450.0,0.00019846,2]
[359685736,1746251012395,-450.0,0.00019846,2]
[359685737,1746251012420,-450.0,0.00019846,2]
[359685738,1746251012444,-450.0,0.00019846,2]
[359685739,1746251012468,-449.99472933,0.00019846,2]
[359685740,1746251012491,-450.0,0.00019846,2]
[359685741,1746251012514,-450.0,0.00019846,2]
[359685742,1746251012537,-450.0,0.00019846,2]
[359685743,1746251012560,-450.0,0.00019846,2]
[359685744,1746251012584,-450.0,0.00019846,2]
[359685745,1746251012608,-450.0,0.00019846,2]
[359685746,1746251012631,-450.0,0.00019846,2]
[359685747,1746251012656,-450.0,0.00019846,2]
[359685748,1746251012680,-450.0,0.00019846,2]
[359685749,1746251012703,-450.0,0.00019846,2]
[359685750,1746251012726,-263.2792224,0.00019846,2]
[359685751,1746251012750,-221.5595421,0.00019846,2]
[359685752,1746251012773,-450.0,0.00019846,2]
[359685753,1746251012796,-213.90254798,0.00019846,2]
[359685754,1746251012819,-450.0,0.00019846,2]
[359685755,1746251012844,-450.0,0.00019846,2]
[359685756,1746251012870,-450.0,0.00019846,2]
[359685757,1746251012895,-450.0,0.00019846,2]
[359685758,1746251012917,-450.0,0.00019846,2]
[359685759,1746251012940,-450.0,0.00019846,2]
[359685760,1746251012962,-450.0,0.00019846,2]
[359685761,1746251012983,-450.0,0.00019846,2]
[359685762,1746251013005,-450.0,0.00019846,2]
[359685763,1746251013027,-742.89,0.00019846,2]
[359685764,1746251013049,-461.92,0.00019846,2]
[359685765,1746251013072,-936.45,0.00019846,2]
[359685766,1746251013096,-277.8688385,0.00019846,2]
[359685767,1746251013119,-450.0,0.00019846,2]
[359685768,1746251013142,-450.0,0.00019846,2]
[359685769,1746251013166,-450.0,0.00019846,2]
[359685770,1746251013190,-450.0,0.00019846,2]
[359685771,1746251013213,-450.0,0.00019846,2]
[359685772,1746251013238,-450.0,0.00019846,2]
[359685773,1746251013261,-450.0,0.00019846,2]
[359685774,1746251013285,-154.58695475,0.00019846,2]
[359685775,1746251013308,-450.0,0.00019846,2]
[359685776,1746251013333,-450.0,0.00019846,2]
[359685777,1746251013357,-450.0,0.00019846,2]
[359685778,1746251013380,-450.0,0.00019846,2]
[359685779,1746251013409,-450.0,0.00019846,2]
[359685780,1746251013440,-450.0,0.00019846,2]
[359685781,1746251013464,-450.0,0.00019846,2]
[359685782,1746251013487,-586.69,0.00019846,2]
[359685783,1746251013510,-450.0,0.00019846,2]
[359685784,1746251013532,-450.0,0.00019846,2]
[359685785,1746251013555,-450.0,0.00019846,2]
[359685786,1746251013577,-450.0,0.00019846,2]
[359685787,1746251013600,-150.0,0.00019846,2]
[359685788,1746251013623,-450.0,0.00019846,2]
[359685789,1746251013646,-472.8832217,0.00019846,2]
[359685790,1746251013671,-450.0,0.00019846,2]
[359685791,1746251013695,-450.0,0.00019846,2]
[359685792,1746251013718,-478.25309294,0.00019846,2]
[359685793,1746251013741,-486.12125161,0.00019846,2]
[359685794,1746251013762,-450.0,0.00019846,2]
[359685795,1746251013783,-999.0,0.00019846,2]
[359685796,1746251013806,-465.69445318,0.00019846,2]
[359685797,1746251013828,-681.14,0.00019846,2]
[359685798,1746251013851,-478.82,0.00019846,2]
[359685799,1746251013874,-450.0,0.00019846,2]
[359685800,1746251013896,-450.0,0.00019846,2]
[359685801,1746251013918,-450.0,0.00019846,2]
[359685802,1746251013941,-450.0,0.00019846,2]
[359685803,1746251013964,-1366.08,0.00019846,2]
[359685804,1746251013987,-450.0,0.00019846,2]
[359685805,1746251014011,-479.58872183,0.00019846,2]
[359685806,1746251014039,-450.0,0.00019846,2]
[359685807,1746251014064,-450.0,0.00019846,2]
[359685808,1746251014088,-450.0,0.00019846,2]
[359685809,1746251014112,-450.0,0.00019846,2]
[359685810,1746251014136,-813.85,0.00019846,2]
[359685811,1746251014161,-450.0,0.00019846,2]
[359685812,1746251014185,-460.24697355,0.00019846,2]
[359685813,1746251014210,-492.40430465,0.00019846,2]
[359685814,1746251014234,-492.77701312,0.00019846,2]
[359685815,1746251014258,-450.0,0.00019846,2]
[359685816,1746251014282,-491.81617772,0.00019846,2]
[359685817,1746251014308,-450.0,0.00019846,2]
[359685818,1746251014335,-864.67,0.00019846,2]
[359685819,1746251014358,-4306.45,0.00019846,2]
[359685820,1746251014382,-450.0,0.00019846,2]
[359685821,1746251014406,-450.0,0.00019846,2]
[359685822,1746251014430,-78226.94,0.00019846,2]
[359685823,1746251014453,-450.0,0.00019846,2]
[359685824,1746251014477,-488.1697104,0.00019846,2]
[359685825,1746251014500,-457.01,0.00019846,2]
[359685826,1746251014523,-450.0,0.00019846,2]
[359685827,1746251014546,-459.15454204,0.00019846,2]
[359685828,1746251014569,-450.0,0.00019846,2]
[359685829,1746251014592,-478.84561899,0.00019846,2]
[359685830,1746251014615,-4629.84,0.00019846,2]
[359685831,1746251014642,-450.0,0.00019846,2]
[359685832,1746251014672,-450.0,0.00019846,2]
[359685833,1746251014699,-457.59240809,0.00019846,2]
[359685834,1746251014724,-450.0,0.00019846,2]
[359685835,1746251014752,-526.19,0.00019846,2]
[359685836,1746251014779,-26518.28,0.00019846,2]
[359685837,1746251014808,-450.0,0.00019846,2]
[359685838,1746251014837,-450.0,0.00019846,2]
[359685839,1746251014865,-631.81,0.00019846,2]
[359685840,1746251014892,-1744.67,0.00019846,2]
[359685841,1746251014919,-450.0,0.00019846,2]
[359685842,1746251014949,-5576.19,0.00019846,2]
[359685843,1746251014979,-450.0,0.00019846,2]
[359685844,1746251015009,-450.0,0.00019846,2]
[359685845,1746251015041,-1000.0,0.00019846,2]
[359685846,1746251015069,-1000.0,0.00019846,2]
[359685847,1746251015098,-1000.0,0.00019846,2]
[359685848,1746251015126,-1000.0,0.00019846,2]
[359685849,1746251015154,-450.0,0.00019846,2]
[359685850,1746251015185,-1000.0,0.00019846,2]
[359685851,1746251015214,-1026.39740553,0.00019846,2]
[359685852,1746251015242,-450.0,0.00019846,2]
[359685853,1746251015270,-450.0,0.00019846,2]
[359685854,1746251015298,-450.0,0.00019846,2]
[359685855,1746251015327,-450.0,0.00019846,2]
[359685856,1746251015354,-606.66,0.00019846,2]
[359685857,1746251015379,-615.35,0.00019846,2]
[359685858,1746251015406,-450.0,0.00019846,2]
[359685859,1746251015430,-620.66,0.00019846,2]
[359685860,1746251015456,-450.0,0.00019846,2]
[359685861,1746251015484,-450.0,0.00019846,2]
[359685862,1746251015515,-450.0,0.00019846,2]
[359685863,1746251015541,-515.61,0.00019846,2]
[359685864,1746251015567,-460.8437359,0.00019846,2]
[359685865,1746251015594,-612.11,0.00019846,2]
[359685866,1746251015622,-450.0,0.00019846,2]
[359685867,1746251015648,-450.0,0.00019846,2]
[359685868,1746251015674,-505.14,0.00019846,2]
[359685869,1746251015700,-450.0,0.00019846,2]
[359685870,1746251015726,-450.0,0.00019846,2]
[359685871,1746251015752,-450.0,0.00019846,2]
[359685872,1746251015779,-450.0,0.00019846,2]
[359685873,1746251015805,-450.0,0.00019846,2]
[359685874,1746251015831,-450.0,0.00019846,2]
[359685875,1746251015857,-450.0,0.00019846,2]
[359685876,1746251015883,-471.56831048,0.00019846,2]
[359685877,1746251015909,-545.5843728,0.00019846,2]
[359685878,1746251015935,-450.0,0.00019846,2]
[359685879,1746251015965,-450.0,0.00019846,2]
[359685880,1746251015990,-450.0,0.00019846,2]
[359685881,1746251016016,-450.0,0.00019846,2]
[359685882,1746251016042,-450.0,0.00019846,2]
[359685883,1746251016067,-450.0,0.00019846,2]
[359685884,1746251016093,-450.0,0.00019846,2]
[359685885,1746251016118,-450.0,0.00019846,2]
[359685886,1746251016145,-1031.0,0.00019846,2]
[359685887,1746251016174,-450.0,0.00019846,2]
[359685888,1746251016202,-450.0,0.00019846,2]
[359685889,1746251016229,-572.0,0.00019846,2]
[359685890,1746251016256,-450.0,0.00019846,2]
[359685891,1746251016283,-450.0,0.00019846,2]
[359685892,1746251016315,-450.0,0.00019846,2]
[359685893,1746251016342,-450.0,0.00019846,2]
[359685894,1746251016368,-560.31726398,0.00019846,2]
[359685895,1746251016397,-450.0,0.00019846,2]
[359685896,1746251016423,-450.0,0.00019846,2]
[359685897,1746251016450,-450.0,0.00019846,2]
[359685898,1746251016476,-450.0,0.00019846,2]
[359685899,1746251016501,-479.70341354,0.00019846,2]
[359685900,1746251016527,-450.0,0.00019846,2]
[359685901,1746251016552,-450.0,0.00019846,2]
[359685902,1746251016577,-582.91,0.00019846,2]
[359685903,1746251016603,-450.0,0.00019846,2]
[359685904,1746251016628,-450.0,0.00019846,2]
[359685905,1746251016654,-450.0,0.00019846,2]
[359685906,1746251016679,-450.0,0.00019846,2]
[359685907,1746251016707,-450.0,0.00019846,2]
[359685908,1746251016733,-450.0,0.00019846,2]
[359685909,1746251016759,-450.0,0.00019846,2]
[359685910,1746251016785,-450.0,0.00019846,2]
[359685911,1746251016811,-722.03,0.00019846,2]
[359685912,1746251016836,-1031.86,0.00019846,2]
[359685913,1746251016863,-450.0,0.00019846,2]
[359685914,1746251016889,-450.0,0.00019846,2]
[359685915,1746251016914,-493.78,0.00019846,2]
[359685916,1746251016940,-450.0,0.00019846,2]
[359685917,1746251016965,-707.67,0.00019846,2]
[359685918,1746251016991,-450.0,0.00019846,2]
[359685919,1746251017018,-450.0,0.00019846,2]
[359685920,1746251017044,-464.14593802,0.00019846,2]
[359685921,1746251017070,-452.54,0.00019846,2]
[359685922,1746251017095,-481.13778708,0.00019846,2]
[359685923,1746251017121,-300.0,0.00019846,2]
[359685924,1746251017146,-450.0,0.00019846,2]
[359685925,1746251017172,-558.42,0.00019846,2]
[359685926,1746251017198,-450.0,0.00019846,2]
[359685927,1746251017223,-493.32,0.00019846,2]
[359685928,1746251017248,-742.21,0.00019846,2]
[359685929,1746251017274,-460.29768648,0.00019846,2]
[359685930,1746251017299,-450.0,0.00019846,2]
[359685931,1746251017326,-450.0,0.00019846,2]
[359685932,1746251017352,-749.3,0.00019846,2]
[359685933,1746251017377,-761.28,0.00019846,2]
[359685934,1746251017402,-450.0,0.00019846,2]
[359685935,1746251017427,-464.77982689,0.00019846,2]
[359685936,1746251017453,-450.0,0.00019846,2]
[359685937,1746251017477,-273.61431561,0.00019847,2]
[359685938,1746251017502,-500.0,0.00019847,2]
[359685939,1746251017527,-500.0,0.00019847,2]
[359685940,1746251017552,-500.0,0.00019847,2]
[359685941,1746251017576,-536.28,0.00019847,2]
[359685942,1746251017602,-1577.43,0.00019847,2]
[359685943,1746251017627,-536.39,0.00019847,2]
[359685944,1746251017654,-692.31,0.00019847,2]
[359685945,1746251017680,-450.0,0.00019847,2]
[359685946,1746251017705,-1071.32,0.00019847,2]
[359685947,1746251017729,-450.0,0.00019847,2]
[359685948,1746251017755,-450.0,0.00019847,2]
[359685949,1746251017779,-450.0,0.00019847,2]
[359685950,1746251017804,-951.79,0.00019847,2]
[359685951,1746251017828,-450.0,0.00019847,2]
[359685952,1746251017852,-450.0,0.00019847,2]
[359685953,1746251017877,-1373.22,0.00019847,2]
[359685954,1746251017902,-477.01,0.00019847,2]
[359685955,1746251017927,-579.1,0.00019847,2]
[359685956,1746251017951,-1579.43,0.00019847,2]
[359685957,1746251017976,-373.02246416,0.00019847,2]
[359685958,1746251018000,-651.72,0.00019847,2]
[359685959,1746251018024,-516.14,0.00019847,2]
[359685960,1746251018049,-450.0,0.00019847,2]
[359685961,1746251018074,-450.0,0.00019847,2]
[359685962,1746251018098,-606.11,0.00019847,2]
[359685963,1746251018126,-450.0,0.00019847,2]
[359685964,1746251018151,-450.0,0.00019847,2]
[359685965,1746251018175,-450.0,0.00019847,2]
[359685966,1746251018203,-936.69,0.00019847,2]
[359685967,1746251018229,-784.21,0.00019847,2]
[359685968,1746251018253,-2377.62,0.00019847,2]
[359685969,1746251018278,-450.0,0.00019847,2]
[359685970,1746251018305,-1042.01,0.00019847,2]
[359685971,1746251018758,-450.0,0.00019847,2]
[359685972,1746251018789,-474.96754316,0.00019847,2]
[359685973,1746251018818,-450.0,0.00019847,2]
[359685974,1746251018844,-2144.86,0.00019847,2]
[359685975,1746251018867,-621.26,0.00019847,2]
[359685976,1746251018892,-450.0,0.00019847,2]
[359685977,1746251018919,-682.8,0.00019847,2]
[359685978,1746251018945,-591.42,0.00019847,2]
[359685979,1746251018967,-500.0,0.00019847,2]
[359685980,1746251018989,-150.0,0.00019847,2]
[359685981,1746251019015,-150.0,0.00019847,2]
[359685982,1746251019039,-12500.0,0.00019847,2]
[359685983,1746251019064,-1569.71842542,0.00019852,2]
[359685984,1746251019089,-1000.0,0.00019854,2]
[359685985,1746251019114,-12500.0,0.00019856,2]
[359685986,1746251019141,-150.0,0.00019857,2]
[359685987,1746251019163,-1000.0,0.00019864,2]
[359685988,1746251019185,-12500.0,0.00019865,2]
[359685989,1746251019207,-1000.0,0.00019867,2]
[359685990,1746251019231,-150.0,0.0001987,2]
[359685991,1746251019254,-150.0,0.00019872,2]
[359685992,1746251019276,-500.0,0.00019873,2]
[359685993,1746251019299,-500.0,0.00019873,2]
[359685994,1746251019322,-513.96299407,0.00019873,2]
[359685995,1746251019346,-500.0,0.00019873,2]
[359685996,1746251019368,-500.0,0.00019873,2]
[359685997,1746251019391,-500.0,0.00019873,2]
[359685998,1746251019414,-500.0,0.00019873,2]
[359685999,1746251019437,-500.0,0.00019873,2]
[359686000,1746251019459,-500.68219032,0.00019873,2]
[359686001,1746251019481,-500.0,0.00019873,2]
[359686002,1746251019503,-312.01437503,0.00019873,2]
[359686003,1746251019526,-500.0,0.00019873,2]
[359686004,1746251019548,-500.0,0.00019873,2]
[359686005,1746251019571,-500.0,0.00019873,2]
[359686006,1746251019594,-500.0,0.00019873,2]
[359686007,1746251019619,-12500.0,0.00019874,2]
[359686008,1746251019643,-12500.0,0.00019882,2]
[359686009,1746251019669,-150.0,0.00019883,2]
[359686010,1746251019692,-159.19879139,0.00019886,2]
[359686011,1746251019717,-150.0,0.00019886,2]
[359686012,1746251019741,-150.0,0.00019887,2]
[359686013,1746251019765,-150.0,0.00019889,2]
[359686014,1746251019791,-159.19879139,0.00019891,2]
[359686015,1746251019816,-150.0,0.00019891,2]
[359686016,1746251019842,-12500.0,0.00019891,2]
[359686017,1746251019867,-150.0,0.00019894,2]
[359686018,1746251019890,-159.19879139,0.00019895,2]
[359686019,1746251019913,-68023.20874793,0.000199,2]
[359686020,1746251019937,-12500.0,0.000199,2]
[359686021,1746251019963,-159.19879139,0.000199,2]
[359686022,1746251019991,-1569.71842542,0.000199,2]
[359686023,1746251020016,-634.35822519,0.000199,2]
[359686024,1746251020042,-11036.25197262,0.000199,2]
[359686025,1746251020065,-165.34908229,0.000199,2]
[359686026,1746251020398,670.24,0.00019572,2]
[359686027,1746251020532,670.24,0.00019846,2]
[359686028,1746251020636,450.0,0.00019572,2]
[359686029,1746251020761,454.53686391,0.00019846,2]
[359686030,1746251020797,450.0,0.00019572,2]
[359686031,1746251020834,450.0,0.00019846,2]
[359686032,1746251021108,11903.88005019,0.000198,2]
[359686033,1746251021283,450.0,0.00019572,2]
[359686034,1746251021316,450.0,0.00019572,2]
[359686035,1746251021345,450.0,0.00019846,2]
[359686036,1746251021377,450.0,0.00019846,2]
[359686037,1746251021679,450.0,0.00019572,2]
[359686038,1746251021711,450.0,0.00019572,2]
[359686039,1746251021806,450.0,0.00019846,2]
[359686040,1746251021838,450.0,0.00019846,2]
[359686041,1746251022089,151.0,0.00019784,2]
[359686042,1746251022299,450.0,0.00019845,2]
[359686043,1746251022584,450.0,0.00019572,2]
[359686044,1746251022627,450.0,0.00019846,2]
[359686045,1746251022656,1000.0,0.0001957,2]
[359686046,1746251022697,1000.0,0.0001957,2]
[359686047,1746251022731,450.0,0.00019571,2]
[359686048,1746251022764,1000.0,0.0001957,2]
[359686049,1746251022802,1000.0,0.0001957,2]
[359686050,1746251022835,1000.0,0.0001957,2]
[359686051,1746251022872,1000.0,0.0001957,2]
[359686052,1746251022998,1057.0,0.0001957,2]
[359686053,1746251023030,450.0,0.00019572,2]
[359686054,1746251023069,460.4631633,0.00019846,2]
[359686055,1746251023103,450.0,0.00019572,2]
[359686056,1746251023133,5899.7192675,0.00019745,2]
[359686057,1746251023245,450.0,0.00019846,2]
[359686058,1746251023273,180.84581838,0.000199,3]
[359686059,1746251023312,9293.66,0.00019845,2]
[359686060,1746251023479,450.0,0.00019572,2]
[359686061,1746251023516,450.0,0.00019846,2]
[359686062,1746251023563,458.19082222,0.00019572,2]
[359686063,1746251023713,450.0,0.00019571,2]
[359686064,1746251023752,450.0,0.00019845,2]
[359686065,1746251023799,450.0,0.00019572,2]
[359686066,1746251023836,450.0,0.00019846,2]
[359686067,1746251023904,5899.71926745,0.00019762,2]
[359686068,1746251024143,450.0,0.00019572,2]
[359686069,1746251024176,450.0,0.00019572,2]
[359686070,1746251024206,450.0,0.00019846,2]
[359686071,1746251024237,450.0,0.00019571,2]
[359686072,1746251024272,450.0,0.00019846,2]
[359686073,1746251024309,450.0,0.00019845,2]
[359686074,1746251024357,450.0,0.00019571,2]
[359686075,1746251024432,450.0,0.00019572,2]
[359686076,1746251024471,5899.71926745,0.00019779,2]
[359686077,1746251024501,450.0,0.00019846,2]
[359686078,1746251024592,450.0,0.00019572,2]
[359686079,1746251024630,151.0,0.0001982,2]
[359686080,1746251024660,450.0,0.00019572,2]
[359686081,1746251024702,483.47,0.00019846,2]
[359686082,1746251024825,450.0,0.00019572,2]
[359686083,1746251024854,203.9699087,0.000199,2]
[359686084,1746251025139,473.26684363,0.00019572,2]
[359686085,1746251025722,450.0,0.00019571,2]
[359686086,1746251025806,5899.71926745,0.00019797,2]
[359686087,1746251025964,450.0,0.00019572,2]
[359686088,1746251025995,450.0,0.00019845,2]
[359686089,1746251026209,450.0,0.00019846,2]
[359686090,1746251029152,705.91,0.00019572,2]
[359686091,1746251029186,450.0,0.00019572,2]
[359686092,1746251029392,705.91,0.00019846,2]
[359686093,1746251029423,450.0,0.00019846,2]
[359686094,1746251030328,450.0,0.00019571,2]
[359686095,1746251030358,450.0,0.00019572,2]
[359686096,1746251030846,450.0,0.00019845,2]
[359686097,1746251030880,450.0,0.00019846,2]
[359686098,1746251030930,5899.71926745,0.00019814,2]
[359686099,1746251031378,599.82,0.00019571,2]
[359686100,1746251031616,599.82,0.00019845,2]
[359686101,1746251031706,450.0,0.00019572,2]
[359686102,1746251031935,450.0,0.00019846,2]
[359686103,1746251033115,450.0,0.00019571,2]
[359686104,1746251033364,2538.96,0.00019572,2]
[359686105,1746251033484,450.0,0.00019845,2]
[359686106,1746251033593,2538.96,0.00019846,2]
[359686107,1746251034237,283.2805994,0.00019799,2]
[359686108,1746251035533,101983.26,0.00019571,2]
[359686109,1746251035586,331.60792449,0.00019571,2]
[359686110,1746251035675,450.0,0.00019572,2]
[359686111,1746251035790,90094.76290052,0.00019845,2]
[359686112,1746251046967,30000.0,0.0003287,60]
[359686113,1746251147760,23900.0,0.00018947,2]
[359686114,1746251193320,298.66,0.0003,30]
[359686115,1746251242050,158.26,0.00019178,2]
[359686116,1746251260098,426.37825123,0.00019972,5]
[359686117,1746251260131,202.70833166,0.00019972,5]
[359686118,1746251298816,-351.17971766,0.00019562,2]
[359686119,1746251302359,-267.28634013,0.00019562,2]
[359686120,1746251305533,-429.34987437,0.00019562,2]
[359686121,1746251309314,-162.06353424,0.00019562,2]
[359686122,1746251309376,200.0,0.0001891,2]
[359686123,1746251311959,-187.43587134,0.00019562,2]
[359686124,1746251315706,-188.66894,0.00019562,2]
[359686125,1746251318907,-161.33106,0.00019562,2]
[359686127,1746251321597,-166.61742077,0.00019562,2]
[359686128,1746251324760,-200.0,0.00019562,2]
[359686129,1746251328973,-320.10083242,0.00019562,2]
[359686130,1746251332748,-290.60471069,0.00019562,2]
[359686131,1746251337144,-299.50201424,0.00019562,2]
[359686132,1746251342593,-163.0922284,0.00019562,2]
[359686133,1746251343832,361.29,0.0001701,2]
[359686134,1746251344040,361.29,0.00019273,2]
[359686135,1746251345831,-163.022522,0.00019562,2]
[359686136,1746251357849,1489.07015685,0.00019471,2]
[359686137,1746251377125,2949.85963377,0.00019472,2]
[359686138,1746251406489,19774.79,0.00018799,2]
[359686139,1746251418778,-263.89318283,0.00019519,2]
[359686140,1746251432182,-483.15019068,0.00019519,2]
[359686141,1746251432193,-742.02678325,0.00019519,2]
[359686142,1746251432203,-2949.85963372,0.0001952,2]
[359686143,1746251432213,-3228.49875089,0.00019562,2]
[359686144,1746251432223,-1200.0,0.00019565,2]
[359686145,1746251432232,-282.69441908,0.00019566,2]
[359686146,1746251432253,-1206.37573768,0.00019566,2]
[359686147,1746251432263,-1449.02452607,0.00019567,2]
[359686148,1746251432304,-1500.83510765,0.00019567,2]
[359686149,1746251432314,-500.0,0.0001957,2]
[359686150,1746251432324,-500.0,0.0001957,2]
[359686151,1746251432333,-500.0,0.0001957,2]
[359686152,1746251432343,-206.77015829,0.0001957,2]
[359686153,1746251432353,-78.32498079,0.0001957,2]
[359686154,1746251432419,-508.08267894,0.0001957,2]
[359686155,1746251432428,-500.0,0.0001957,2]
[359686156,1746251432438,-450.0,0.0001957,2]
[359686157,1746251432447,-779.49904186,0.00019571,2]
[359686396,1746251438653,-450.0,0.0001957,2]
[359686397,1746251438663,-220.50095814,0.00019571,2]
[359686398,1746251438673,-1000.0,0.00019571,2]
[359686400,1746251438682,-1000.0,0.00019571,2]
[359686403,1746251438692,-1000.0,0.00019571,2]
[359686404,1746251438701,-1000.0,0.00019571,2]
[359686405,1746251438711,-1000.0,0.00019571,2]
[359686406,1746251438721,-1000.0,0.00019571,2]
[359686407,1746251438735,-1000.0,0.00019571,2]
[359686408,1746251438744,-1000.0,0.00019571,2]
[359686409,1746251438753,-1000.0,0.00019571,2]
[359686410,1746251438763,-1000.0,0.00019571,2]
[359686411,1746251438774,-1000.0,0.00019571,2]
[359686412,1746251438783,-1000.0,0.00019571,2]
[359686413,1746251438793,-1000.0,0.00019571,2]
[359686414,1746251438804,-1000.0,0.00019571,2]
[359686415,1746251438813,-1000.0,0.00019571,2]
[359686416,1746251438822,-1000.0,0.00019571,2]
[359686417,1746251438831,-1000.0,0.00019571,2]
[359686418,1746251438840,-1000.0,0.00019571,2]
[359686419,1746251438849,-1000.0,0.00019571,2]
[359686420,1746251438858,-1000.0,0.00019571,2]
[359686421,1746251438867,-1000.0,0.00019571,2]
[359686422,1746251438877,-1000.0,0.00019571,2]
[359686423,1746251438886,-1000.0,0.00019571,2]
[359686424,1746251438895,-1000.0,0.00019571,2]
[359686425,1746251438904,-1000.0,0.00019571,2]
[359686426,1746251438913,-1000.0,0.00019571,2]
[359686427,1746251438923,-1000.0,0.00019571,2]
[359686428,1746251438932,-1000.0,0.00019571,2]
[359686429,1746251438941,-1000.0,0.00019571,2]
[359686430,1746251438951,-1000.0,0.00019571,2]
[359686431,1746251438961,-1000.0,0.00019571,2]
[359686432,1746251438971,-1000.0,0.00019571,2]
[359686433,1746251438980,-1000.0,0.00019571,2]
[359686434,1746251438989,-1000.0,0.00019571,2]
[359686435,1746251438998,-1000.0,0.00019571,2]
[359686436,1746251439007,-1000.0,0.00019571,2]